[Event "Live Chess"]
[Site "Chess.com"]
[Date "2023.09.16"]
[Round "-"]
[White "augustodemoraisrocha"]
[Black "zxsimon"]
[Result "0-1"]
[WhiteElo "1466"]
[BlackElo "1487"]
[TimeControl "900+5"]
[EndTime "6:10:17 PDT"]
[Termination "zxsimon venceu por desistência"]

1. e4 {[%clk 0:15:02.8]} 1... c5 {[%clk 0:15:03.4]} 2. Nf3 {[%clk 0:15:06.2]}
2... Nc6 {[%clk 0:15:06.1]} 3. d4 {[%clk 0:15:10.3]} 3... cxd4 {[%clk 0:15:10]}
4. Nxd4 {[%clk 0:15:15.1]} 4... g6 {[%clk 0:15:09.5]} 5. Nxc6 {[%clk 0:15:18.9]}
5... bxc6 {[%clk 0:15:10.2]} 6. Nc3 {[%clk 0:15:22.8]} 6... Bg7 {[%clk
0:15:13.4]} 7. Bd3 {[%clk 0:15:24.8]} 7... d6 {[%clk 0:15:06.6]} 8. Be3 {[%clk
0:15:23.9]} 8... c5 {[%clk 0:15:07.8]} 9. Qd2 {[%clk 0:15:24.1]} 9... Nf6 {[%clk
0:15:10.4]} 10. h3 {[%clk 0:15:22.5]} 10... Rb8 {[%clk 0:15:11.9]} 11. Rb1
{[%clk 0:15:18.5]} 11... a5 {[%clk 0:15:04.4]} 12. a3 {[%clk 0:15:19.1]} 12...
Bd7 {[%clk 0:15:06.1]} 13. Nd5 {[%clk 0:15:19.1]} 13... Nxd5 {[%clk 0:15:04]}
14. exd5 {[%clk 0:15:24]} 14... Rxb2 {[%clk 0:14:59.6]} 15. Rxb2 {[%clk
0:15:27]} 15... Bxb2 {[%clk 0:15:03.5]} 16. O-O {[%clk 0:15:00.4]} 16... Bg7
{[%clk 0:15:03.7]} 17. Re1 {[%clk 0:14:58.7]} 17... O-O {[%clk 0:15:06]} 18. Bh6
{[%clk 0:14:55.2]} 18... Re8 {[%clk 0:15:06.8]} 19. Bxg7 {[%clk 0:14:55.3]}
19... Kxg7 {[%clk 0:15:07]} 20. Re3 {[%clk 0:14:50.7]} 20... e6 {[%clk
0:14:59.4]} 21. dxe6 {[%clk 0:14:52.6]} 21... Rxe6 {[%clk 0:14:53.2]} 22. Rxe6
{[%clk 0:14:55.8]} 22... Bxe6 {[%clk 0:14:55.3]} 23. Qc3+ {[%clk 0:14:51.6]}
23... Kg8 {[%clk 0:14:39.5]} 24. Bc4 {[%clk 0:14:52.8]} 24... Bxc4 {[%clk
0:14:29.6]} 25. Qxc4 {[%clk 0:14:57.7]} 25... Qb6 {[%clk 0:14:32.3]} 26. Qb3
{[%clk 0:14:41.8]} 26... Qxb3 {[%clk 0:14:26.3]} 27. cxb3 {[%clk 0:14:46.7]}
27... Kf8 {[%clk 0:14:30.2]} 28. Kf1 {[%clk 0:14:48.9]} 28... Ke7 {[%clk
0:14:33.7]} 29. Ke2 {[%clk 0:14:52.7]} 29... Ke6 {[%clk 0:14:38.2]} 30. Kd3
{[%clk 0:14:56.7]} 30... Kd5 {[%clk 0:14:42.3]} 31. f4 {[%clk 0:14:51.2]} 31...
h6 {[%clk 0:14:37.5]} 32. g4 {[%clk 0:14:37.8]} 32... f5 {[%clk 0:14:37.6]} 33.
Ke3 {[%clk 0:14:13.5]} 33... c4 {[%clk 0:14:22.7]} 34. bxc4+ {[%clk 0:14:02.9]}
34... Kxc4 {[%clk 0:14:25.8]} 35. g5 {[%clk 0:14:04.3]} 35... h5 {[%clk
0:14:26.2]} 36. Kd2 {[%clk 0:13:58.1]} 36... d5 {[%clk 0:14:27.3]} 37. Kc2
{[%clk 0:13:55.9]} 37... d4 {[%clk 0:14:30.7]} 38. h4 {[%clk 0:13:50.6]} 38...
d3+ {[%clk 0:14:33.2]} 39. Kb2 {[%clk 0:13:39.7]} 39... a4 {[%clk 0:14:34.2]}
40. Kc1 {[%clk 0:13:38.7]} 40... Kc3 {[%clk 0:14:37.2]} 41. Kd1 {[%clk
0:13:36.7]} 41... d2 {[%clk 0:14:39.6]} 42. Ke2 {[%clk 0:13:39]} 42... Kc2
{[%clk 0:14:43.8]} 0-1

[Event "Live Chess"]
[Site "Chess.com"]
[Date "2023.09.16"]
[Round "-"]
[White "Riquelme_Leonardo"]
[Black "Megruo988"]
[Result "0-1"]
[WhiteElo "1702"]
[BlackElo "1720"]
[TimeControl "900+5"]
[EndTime "6:10:24 PDT"]
[Termination "Megruo988 venceu por desistência"]

1. e4 {[%clk 0:15:03.6]} 1... e5 {[%clk 0:15:02.8]} 2. Nf3 {[%clk 0:15:07.6]}
2... Nc6 {[%clk 0:15:06.3]} 3. Bc4 {[%clk 0:15:11.9]} 3... Nf6 {[%clk
0:15:10.1]} 4. Nc3 {[%clk 0:15:15.3]} 4... Be7 {[%clk 0:15:13.3]} 5. O-O {[%clk
0:15:18.8]} 5... O-O {[%clk 0:15:16.4]} 6. d3 {[%clk 0:15:22.3]} 6... h6 {[%clk
0:15:18.8]} 7. Be3 {[%clk 0:15:23.9]} 7... a6 {[%clk 0:15:15.4]} 8. Qd2 {[%clk
0:15:21]} 8... d6 {[%clk 0:15:17.8]} 9. Nd5 {[%clk 0:15:22.9]} 9... Nxd5 {[%clk
0:15:20.7]} 10. Bxd5 {[%clk 0:15:26.5]} 10... Be6 {[%clk 0:14:49.8]} 11. Bxe6
{[%clk 0:15:28.8]} 11... fxe6 {[%clk 0:14:54]} 12. h3 {[%clk 0:15:29.3]} 12...
d5 {[%clk 0:14:35.1]} 13. Nh2 {[%clk 0:15:34.2]} 13... d4 {[%clk 0:14:30.4]} 14.
Bxh6 {[%clk 0:15:34.9]} 14... gxh6 {[%clk 0:14:29.3]} 15. Qxh6 {[%clk
0:15:39.8]} 15... Rf6 {[%clk 0:14:11]} 16. Qg5+ {[%clk 0:15:38.1]} 16... Kf7
{[%clk 0:14:11.9]} 17. Ng4 {[%clk 0:15:41.3]} 17... Rg6 {[%clk 0:13:58.8]} 18.
Nxe5+ {[%clk 0:15:37.9]} 18... Nxe5 {[%clk 0:14:00.6]} 19. Qxe5 {[%clk
0:15:42.8]} 19... Qd6 {[%clk 0:13:32.9]} 20. Qh5 {[%clk 0:15:36.5]} 20... Rg8
{[%clk 0:13:17.7]} 21. Qf3+ {[%clk 0:15:31.9]} 21... Ke8 {[%clk 0:13:13.8]} 22.
g4 {[%clk 0:15:35.4]} 22... Qe5 {[%clk 0:12:55.2]} 23. Kg2 {[%clk 0:15:28.8]}
23... Bd6 {[%clk 0:12:56.1]} 24. Rh1 {[%clk 0:15:29.9]} 24... Rf8 {[%clk
0:12:31.8]} 25. Qe2 {[%clk 0:15:25.7]} 25... Rgf6 {[%clk 0:12:29.4]} 26. Raf1
{[%clk 0:15:28.2]} 26... Rf3 {[%clk 0:11:24.4]} 27. b3 {[%clk 0:15:00.5]} 27...
Rg3+ {[%clk 0:11:17.7]} 28. Kh2 {[%clk 0:14:47.5]} 28... Rxg4+ {[%clk
0:11:14.1]} 29. f4 {[%clk 0:14:48.2]} 0-1

[Event "Live Chess"]
[Site "Chess.com"]
[Date "2023.09.16"]
[Round "-"]
[White "lucasbezerraja"]
[Black "sleepGM86"]
[Result "1-0"]
[WhiteElo "1805"]
[BlackElo "1116"]
[TimeControl "900+5"]
[EndTime "6:10:37 PDT"]
[Termination "lucasbezerraja venceu por desistência"]

1. e4 {[%clk 0:15:02.2]} 1... c5 {[%clk 0:15:03.2]} 2. Nf3 {[%clk 0:15:06.1]}
2... Nc6 {[%clk 0:15:06.2]} 3. c3 {[%clk 0:15:10.6]} 3... g6 {[%clk 0:15:07.2]}
4. d4 {[%clk 0:15:14.6]} 4... cxd4 {[%clk 0:15:11.3]} 5. cxd4 {[%clk 0:15:19.5]}
5... Bg7 {[%clk 0:15:15.6]} 6. Nc3 {[%clk 0:15:22.7]} 6... e6 {[%clk 0:15:18]}
7. Bb5 {[%clk 0:15:20.3]} 7... Nge7 {[%clk 0:15:21.2]} 8. Be3 {[%clk 0:15:21.9]}
8... a6 {[%clk 0:15:24.1]} 9. Ba4 {[%clk 0:15:22.2]} 9... O-O {[%clk 0:15:24.6]}
10. O-O {[%clk 0:15:23.7]} 10... d5 {[%clk 0:15:27.7]} 11. exd5 {[%clk
0:15:05.8]} 11... exd5 {[%clk 0:15:30.7]} 12. Qd2 {[%clk 0:14:48.4]} 12... Qb6
{[%clk 0:15:19.4]} 13. Bb3 {[%clk 0:14:37.1]} 13... Nf5 {[%clk 0:15:17.6]} 14.
Nxd5 {[%clk 0:14:27.5]} 14... Qb5 {[%clk 0:15:11.8]} 15. Nc7 {[%clk 0:14:22.3]}
15... Qxf1+ {[%clk 0:14:51.6]} 16. Rxf1 {[%clk 0:14:24.3]} 16... Nxe3 {[%clk
0:14:55.9]} 17. fxe3 {[%clk 0:14:27.7]} 17... Rb8 {[%clk 0:14:59.6]} 1-0

[Event "Live Chess"]
[Site "Chess.com"]
[Date "2023.09.16"]
[Round "-"]
[White "maylso"]
[Black "GabrielGGCF"]
[Result "0-1"]
[WhiteElo "1433"]
[BlackElo "1478"]
[TimeControl "900+5"]
[EndTime "6:10:51 PDT"]
[Termination "GabrielGGCF venceu por xeque-mate"]

1. d4 {[%clk 0:15:01.4]} 1... d5 {[%clk 0:15:03.4]} 2. c4 {[%clk 0:15:05]} 2...
c6 {[%clk 0:15:05.8]} 3. Nf3 {[%clk 0:15:06.4]} 3... Nf6 {[%clk 0:15:05.9]} 4.
Nc3 {[%clk 0:15:09.7]} 4... Bf5 {[%clk 0:15:02.5]} 5. Bf4 {[%clk 0:15:11.6]}
5... e6 {[%clk 0:15:04.4]} 6. a3 {[%clk 0:15:10.3]} 6... Bd6 {[%clk 0:15:04.7]}
7. Bxd6 {[%clk 0:15:11.5]} 7... Qxd6 {[%clk 0:15:08.8]} 8. c5 {[%clk 0:15:16.2]}
8... Qe7 {[%clk 0:15:07.3]} 9. e3 {[%clk 0:15:19.4]} 9... O-O {[%clk 0:15:09.6]}
10. Bd3 {[%clk 0:15:16.9]} 10... Bg6 {[%clk 0:15:03.7]} 11. O-O {[%clk
0:15:14.7]} 11... Re8 {[%clk 0:15:02.2]} 12. Ne5 {[%clk 0:15:12.7]} 12... Bh5
{[%clk 0:15:00.4]} 13. Be2 {[%clk 0:14:10.5]} 13... Bxe2 {[%clk 0:15:00.2]} 14.
Qxe2 {[%clk 0:14:15.4]} 14... Nbd7 {[%clk 0:15:04]} 15. Nd3 {[%clk 0:14:17.6]}
15... Nf8 {[%clk 0:15:04.1]} 16. b4 {[%clk 0:14:18.2]} 16... Ng6 {[%clk
0:14:59.5]} 17. a4 {[%clk 0:14:13]} 17... h6 {[%clk 0:14:57.8]} 18. b5 {[%clk
0:14:16]} 18... Rab8 {[%clk 0:14:56.4]} 19. Rfb1 {[%clk 0:14:05.5]} 19... Nh4
{[%clk 0:14:42.1]} 20. b6 {[%clk 0:13:44]} 20... axb6 {[%clk 0:14:40.2]} 21.
cxb6 {[%clk 0:13:48.9]} 21... Ne4 {[%clk 0:14:34]} 22. Nxe4 {[%clk 0:13:21.5]}
22... dxe4 {[%clk 0:14:37.5]} 23. Nc5 {[%clk 0:13:13.3]} 23... Qg5 {[%clk
0:14:37.1]} 24. g3 {[%clk 0:12:23.8]} 24... Nf3+ {[%clk 0:14:39.4]} 25. Kg2
{[%clk 0:12:13.5]} 25... Nh4+ {[%clk 0:14:33]} 26. Kf1 {[%clk 0:11:51.9]} 26...
Nf3 {[%clk 0:14:27.3]} 27. Nxe4 {[%clk 0:11:43.4]} 27... Qf5 {[%clk 0:14:30.4]}
28. Nd6 {[%clk 0:11:27.1]} 28... Qh3# {[%clk 0:13:59]} 0-1

[Event "Live Chess"]
[Site "Chess.com"]
[Date "2023.09.16"]
[Round "-"]
[White "Thiago1451"]
[Black "ArthurMPRJ"]
[Result "0-1"]
[WhiteElo "571"]
[BlackElo "1128"]
[TimeControl "900+5"]
[EndTime "6:11:32 PDT"]
[Termination "ArthurMPRJ venceu por desistência"]

1. c4 {[%clk 0:15:03]} 1... e6 {[%clk 0:15:01.4]} 2. Nc3 {[%clk 0:15:06.8]} 2...
d5 {[%clk 0:15:04]} 3. cxd5 {[%clk 0:15:07.8]} 3... exd5 {[%clk 0:15:08.9]} 4.
Nf3 {[%clk 0:15:11]} 4... Nf6 {[%clk 0:15:13.1]} 5. d4 {[%clk 0:15:15]} 5... c6
{[%clk 0:15:06.1]} 6. e3 {[%clk 0:15:16.3]} 6... Bd6 {[%clk 0:15:08]} 7. Be2
{[%clk 0:15:16.9]} 7... O-O {[%clk 0:15:10.9]} 8. O-O {[%clk 0:15:21]} 8... Bg4
{[%clk 0:15:11.6]} 9. Ne5 {[%clk 0:15:20.4]} 9... Bxe2 {[%clk 0:15:06.3]} 10.
Qxe2 {[%clk 0:15:23.8]} 10... Nfd7 {[%clk 0:15:06.1]} 11. e4 {[%clk 0:15:24.4]}
11... Nxe5 {[%clk 0:15:05.8]} 12. dxe5 {[%clk 0:15:27.3]} 12... Bxe5 {[%clk
0:15:10]} 13. exd5 {[%clk 0:15:31.5]} 13... Bxc3 {[%clk 0:15:10.4]} 14. bxc3
{[%clk 0:15:33.7]} 14... Qxd5 {[%clk 0:15:08.6]} 15. c4 {[%clk 0:15:36.5]} 15...
Qf5 {[%clk 0:15:02.4]} 16. Bb2 {[%clk 0:15:37.3]} 16... Nd7 {[%clk 0:15:06.4]}
17. Rad1 {[%clk 0:15:36]} 17... Rfe8 {[%clk 0:15:00]} 18. Qc2 {[%clk 0:15:24.4]}
18... Qxc2 {[%clk 0:15:01.9]} 19. Bd4 {[%clk 0:15:22.8]} 19... Nf6 {[%clk
0:14:59.6]} 20. Bxf6 {[%clk 0:15:26.3]} 20... gxf6 {[%clk 0:15:02.7]} 21. Rde1
{[%clk 0:15:29.7]} 21... Rxe1 {[%clk 0:15:00.3]} 22. Rxe1 {[%clk 0:15:33.9]}
22... Qxc4 {[%clk 0:15:04.6]} 23. a3 {[%clk 0:15:36.9]} 23... Kf8 {[%clk
0:15:07]} 24. h3 {[%clk 0:15:40.2]} 24... Re8 {[%clk 0:15:10.1]} 25. Rf1 {[%clk
0:15:40.1]} 25... b5 {[%clk 0:15:09.4]} 26. Kh2 {[%clk 0:15:40.1]} 26... Qxf1
{[%clk 0:15:11.8]} 0-1

[Event "Live Chess"]
[Site "Chess.com"]
[Date "2023.09.16"]
[Round "-"]
[White "zezemito921"]
[Black "VIAJEMCENTRODATERRA"]
[Result "0-1"]
[WhiteElo "921"]
[BlackElo "2011"]
[TimeControl "900+5"]
[EndTime "6:12:14 PDT"]
[Termination "VIAJEMCENTRODATERRA venceu por desistência"]

1. e4 {[%clk 0:15:03.1]} 1... c6 {[%clk 0:15:03.6]} 2. c4 {[%clk 0:15:00.5]}
2... d5 {[%clk 0:15:07.8]} 3. exd5 {[%clk 0:15:03.2]} 3... cxd5 {[%clk
0:15:12.7]} 4. d3 {[%clk 0:14:58.2]} 4... dxc4 {[%clk 0:15:12.3]} 5. dxc4 {[%clk
0:15:02]} 5... Qxd1+ {[%clk 0:15:15]} 6. Kxd1 {[%clk 0:15:05.4]} 6... Nf6 {[%clk
0:15:19.4]} 7. Nf3 {[%clk 0:15:06.7]} 7... Bf5 {[%clk 0:15:16.4]} 8. Nc3 {[%clk
0:15:05.8]} 8... e6 {[%clk 0:15:18.7]} 9. Be2 {[%clk 0:15:07.7]} 9... Bc5 {[%clk
0:15:20.3]} 10. Be3 {[%clk 0:15:05]} 10... Bxe3 {[%clk 0:15:21.6]} 11. fxe3
{[%clk 0:15:07.9]} 11... O-O {[%clk 0:15:20.8]} 12. Ke1 {[%clk 0:15:07.7]} 12...
Nc6 {[%clk 0:15:20.2]} 13. Rd1 {[%clk 0:15:09.9]} 13... Rfd8 {[%clk 0:15:21.1]}
14. Rxd8+ {[%clk 0:15:07.3]} 14... Rxd8 {[%clk 0:15:26]} 15. Kf2 {[%clk
0:15:08.3]} 15... Ng4+ {[%clk 0:15:23.4]} 16. Kg3 {[%clk 0:15:00.8]} 16... Nxe3
{[%clk 0:15:19]} 17. Nb5 {[%clk 0:14:49]} 17... a6 {[%clk 0:14:54.6]} 18. Nc3
{[%clk 0:14:40.9]} 18... Ng4 {[%clk 0:14:40.7]} 19. h3 {[%clk 0:14:24.4]} 19...
Nf6 {[%clk 0:14:30.4]} 20. Rd1 {[%clk 0:14:05.9]} 20... Rxd1 {[%clk 0:14:27.3]}
21. Bxd1 {[%clk 0:14:06.3]} 21... Kf8 {[%clk 0:14:28.8]} 22. Ng5 {[%clk
0:13:56.4]} 22... h6 {[%clk 0:14:20.1]} 23. Nf3 {[%clk 0:13:47.4]} 23... Ke7
{[%clk 0:14:11.7]} 24. a4 {[%clk 0:13:39]} 24... Bd3 {[%clk 0:13:57.2]} 25. c5
{[%clk 0:13:35.2]} 25... Be4 {[%clk 0:13:43.8]} 26. b3 {[%clk 0:13:12.3]} 26...
Bxf3 {[%clk 0:13:40.7]} 27. Bxf3 {[%clk 0:13:14]} 27... Nd7 {[%clk 0:13:44.6]}
28. Bxc6 {[%clk 0:13:08.4]} 28... bxc6 {[%clk 0:13:46.9]} 29. b4 {[%clk
0:13:10.4]} 29... f5 {[%clk 0:13:46.7]} 30. b5 {[%clk 0:13:04.9]} 30... axb5
{[%clk 0:13:43.2]} 31. a5 {[%clk 0:13:06]} 31... Nxc5 {[%clk 0:13:39.2]} 32. Kf4
{[%clk 0:13:02.1]} 32... Na6 {[%clk 0:13:39.5]} 33. g4 {[%clk 0:12:57.5]} 33...
g5+ {[%clk 0:13:32.8]} 34. Kg3 {[%clk 0:12:58.5]} 34... b4 {[%clk 0:13:28.1]}
35. Na4 {[%clk 0:12:57.4]} 35... c5 {[%clk 0:13:29.8]} 36. Nxc5 {[%clk
0:12:52.1]} 36... Nxc5 {[%clk 0:13:32.2]} 37. gxf5 {[%clk 0:12:53.6]} 37... exf5
{[%clk 0:13:34.4]} 38. h4 {[%clk 0:12:56.2]} 38... Na6 {[%clk 0:13:36.2]} 39.
Kf3 {[%clk 0:12:57.5]} 39... b3 {[%clk 0:13:39.4]} 0-1

[Event "Live Chess"]
[Site "Chess.com"]
[Date "2023.09.16"]
[Round "-"]
[White "Mozart5501"]
[Black "NavarroChess09"]
[Result "1-0"]
[WhiteElo "1800"]
[BlackElo "1321"]
[TimeControl "900+5"]
[EndTime "6:12:40 PDT"]
[Termination "Mozart5501 venceu por xeque-mate"]

1. e4 {[%clk 0:15:03.2]} 1... e5 {[%clk 0:15:03]} 2. Nf3 {[%clk 0:15:07.5]} 2...
Nc6 {[%clk 0:15:06]} 3. d4 {[%clk 0:15:12]} 3... d6 {[%clk 0:15:09.2]} 4. dxe5
{[%clk 0:15:15.1]} 4... dxe5 {[%clk 0:15:12]} 5. Qxd8+ {[%clk 0:15:19.7]} 5...
Nxd8 {[%clk 0:15:14.8]} 6. Nxe5 {[%clk 0:15:23.1]} 6... Nf6 {[%clk 0:15:11.9]}
7. Nc3 {[%clk 0:15:27.2]} 7... Bb4 {[%clk 0:15:11.4]} 8. Bd3 {[%clk 0:15:28.7]}
8... O-O {[%clk 0:15:12]} 9. Bg5 {[%clk 0:15:29.6]} 9... Ne6 {[%clk 0:15:12.3]}
10. Bxf6 {[%clk 0:15:33.6]} 10... gxf6 {[%clk 0:15:15.3]} 11. Nf3 {[%clk
0:15:36.2]} 11... Ng5 {[%clk 0:15:16.4]} 12. O-O-O {[%clk 0:15:31.4]} 12... Bg4
{[%clk 0:15:15.5]} 13. Nd5 {[%clk 0:15:20.8]} 13... Bxf3 {[%clk 0:14:52.2]} 14.
gxf3 {[%clk 0:15:18.3]} 14... Nxf3 {[%clk 0:14:53.5]} 15. Nxb4 {[%clk
0:15:19.9]} 15... c5 {[%clk 0:14:55.2]} 16. Nd5 {[%clk 0:15:22.1]} 16... Kg7
{[%clk 0:14:57.1]} 17. Be2 {[%clk 0:15:23.2]} 17... Ng5 {[%clk 0:14:56.7]} 18.
Rhg1 {[%clk 0:15:26.7]} 18... b6 {[%clk 0:14:57.9]} 19. h4 {[%clk 0:15:30.2]}
19... Kh8 {[%clk 0:15:00]} 20. hxg5 {[%clk 0:15:34.6]} 20... fxg5 {[%clk
0:15:04.8]} 21. Rxg5 {[%clk 0:15:38.1]} 21... Rg8 {[%clk 0:15:07.7]} 22. Rdg1
{[%clk 0:15:42.6]} 22... Rxg5 {[%clk 0:15:09]} 23. Rxg5 {[%clk 0:15:46.5]} 23...
h6 {[%clk 0:15:10.3]} 24. Rg4 {[%clk 0:15:47.8]} 24... Kh7 {[%clk 0:15:12.7]}
25. Nf6+ {[%clk 0:15:49.9]} 25... Kh8 {[%clk 0:15:15]} 26. Bc4 {[%clk
0:15:51.5]} 26... Rf8 {[%clk 0:15:15]} 27. Bxf7 {[%clk 0:15:52.8]} 27... Rxf7
{[%clk 0:15:19.9]} 28. Rg8# {[%clk 0:15:56.8]} 1-0

[Event "Live Chess"]
[Site "Chess.com"]
[Date "2023.09.16"]
[Round "-"]
[White "Torugomilho11"]
[Black "Edson_Zarnelli"]
[Result "1-0"]
[WhiteElo "1135"]
[BlackElo "753"]
[TimeControl "900+5"]
[EndTime "6:13:12 PDT"]
[Termination "Torugomilho11 venceu por xeque-mate"]

1. d4 {[%clk 0:15:03.9]} 1... d5 {[%clk 0:15:03.3]} 2. Bf4 {[%clk 0:15:07.5]}
2... Nc6 {[%clk 0:15:02.2]} 3. e3 {[%clk 0:15:11.8]} 3... Bf5 {[%clk 0:15:04.7]}
4. Nf3 {[%clk 0:15:11.1]} 4... Nf6 {[%clk 0:15:06.3]} 5. c3 {[%clk 0:15:09.4]}
5... Bg4 {[%clk 0:14:52]} 6. Nbd2 {[%clk 0:14:59.3]} 6... Ne4 {[%clk 0:14:47.3]}
7. Qb3 {[%clk 0:14:27.7]} 7... b6 {[%clk 0:14:28.5]} 8. Bb5 {[%clk 0:14:23.7]}
8... Bd7 {[%clk 0:14:08.9]} 9. Bxc6 {[%clk 0:13:39.7]} 9... Bxc6 {[%clk
0:14:11.2]} 10. Ne5 {[%clk 0:13:43.4]} 10... Nxd2 {[%clk 0:13:35.4]} 11. Kxd2
{[%clk 0:13:38.5]} 11... Bd7 {[%clk 0:13:33.6]} 12. Qxd5 {[%clk 0:13:04]} 12...
c6 {[%clk 0:12:54.8]} 13. Qxf7# {[%clk 0:13:07]} 1-0

[Event "Live Chess"]
[Site "Chess.com"]
[Date "2023.09.16"]
[Round "-"]
[White "KBT2007"]
[Black "IanFLS"]
[Result "1-0"]
[WhiteElo "1892"]
[BlackElo "1858"]
[TimeControl "900+5"]
[EndTime "6:13:50 PDT"]
[Termination "KBT2007 venceu por desistência"]

1. d4 {[%clk 0:15:02.4]} 1... Nf6 {[%clk 0:15:03.2]} 2. c4 {[%clk 0:15:06.4]}
2... g6 {[%clk 0:15:06.5]} 3. Nc3 {[%clk 0:15:08]} 3... d5 {[%clk 0:15:08.5]} 4.
Bg5 {[%clk 0:15:04.5]} 4... c6 {[%clk 0:14:59.2]} 5. e3 {[%clk 0:14:43.4]} 5...
Bg7 {[%clk 0:14:47.4]} 6. Nf3 {[%clk 0:14:45.4]} 6... O-O {[%clk 0:14:38.2]} 7.
Be2 {[%clk 0:14:45.3]} 7... Nbd7 {[%clk 0:14:30.9]} 8. O-O {[%clk 0:14:48.4]}
8... e6 {[%clk 0:14:34.4]} 9. e4 {[%clk 0:14:18.5]} 9... dxe4 {[%clk 0:14:29.3]}
10. Nxe4 {[%clk 0:14:17.2]} 10... Qc7 {[%clk 0:14:33.3]} 11. Nxf6+ {[%clk
0:14:17.8]} 11... Nxf6 {[%clk 0:14:37.2]} 12. Ne5 {[%clk 0:14:13.2]} 12... c5
{[%clk 0:14:24.7]} 13. Bf4 {[%clk 0:13:46.6]} 13... Qb6 {[%clk 0:13:11.3]} 14.
b3 {[%clk 0:12:47.2]} 14... Rd8 {[%clk 0:13:02.6]} 15. dxc5 {[%clk 0:12:27.5]}
15... Rxd1 {[%clk 0:11:28.5]} 16. cxb6 {[%clk 0:12:29.2]} 16... Rxf1+ {[%clk
0:11:31.8]} 17. Rxf1 {[%clk 0:12:29.7]} 17... axb6 {[%clk 0:11:35.2]} 18. Rd1
{[%clk 0:12:22.7]} 18... b5 {[%clk 0:09:08.2]} 19. Rd8+ {[%clk 0:12:09]} 19...
Bf8 {[%clk 0:09:10.8]} 20. Bh6 {[%clk 0:12:01.8]} 1-0

[Event "Live Chess"]
[Site "Chess.com"]
[Date "2023.09.16"]
[Round "-"]
[White "Riquelme_Leonardo"]
[Black "zxsimon"]
[Result "1-0"]
[WhiteElo "1706"]
[BlackElo "1483"]
[TimeControl "900+5"]
[EndTime "6:14:37 PDT"]
[Termination "Riquelme_Leonardo venceu por desistência"]

1. e4 {[%clk 0:15:04.1]} 1... c5 {[%clk 0:15:02.7]} 2. Nf3 {[%clk 0:15:08.4]}
2... Nc6 {[%clk 0:15:06]} 3. Bb5 {[%clk 0:15:12.6]} 3... d6 {[%clk 0:15:05.4]}
4. Bxc6+ {[%clk 0:15:16.7]} 4... bxc6 {[%clk 0:15:09.4]} 5. O-O {[%clk
0:15:21.6]} 5... g6 {[%clk 0:15:13.4]} 6. c3 {[%clk 0:15:25.3]} 6... Bg7 {[%clk
0:15:17.6]} 7. d4 {[%clk 0:15:29.3]} 7... cxd4 {[%clk 0:15:21]} 8. cxd4 {[%clk
0:15:34.2]} 8... Nf6 {[%clk 0:15:25.1]} 9. Nc3 {[%clk 0:15:38.3]} 9... O-O
{[%clk 0:15:27.6]} 10. Bg5 {[%clk 0:15:42.4]} 10... Bd7 {[%clk 0:15:29.2]} 11.
Rc1 {[%clk 0:15:45.9]} 11... Rb8 {[%clk 0:15:33]} 12. Qd2 {[%clk 0:15:49.9]}
12... Qb6 {[%clk 0:15:28.3]} 13. e5 {[%clk 0:15:42.1]} 13... dxe5 {[%clk
0:15:26.8]} 14. dxe5 {[%clk 0:15:46]} 14... Qxb2 {[%clk 0:15:08.6]} 15. Qxb2
{[%clk 0:15:42.9]} 15... Rxb2 {[%clk 0:15:12.6]} 16. exf6 {[%clk 0:15:47.1]}
16... exf6 {[%clk 0:15:13.6]} 17. Be3 {[%clk 0:15:49.7]} 17... a6 {[%clk
0:15:07.2]} 18. Rfd1 {[%clk 0:15:52.6]} 18... Be6 {[%clk 0:15:09.5]} 19. Nd4
{[%clk 0:15:53]} 19... Bxa2 {[%clk 0:15:10.7]} 20. Nxa2 {[%clk 0:15:55.6]} 20...
Rxa2 {[%clk 0:15:14.6]} 21. Nxc6 {[%clk 0:16:00]} 21... f5 {[%clk 0:15:16.1]}
22. Nb4 {[%clk 0:16:03.7]} 22... Ra4 {[%clk 0:15:19.5]} 23. Nd3 {[%clk
0:16:00.9]} 23... Rb8 {[%clk 0:15:18.7]} 24. Nc5 {[%clk 0:15:58.6]} 24... Ra5
{[%clk 0:15:15.7]} 25. g3 {[%clk 0:15:50.8]} 25... h6 {[%clk 0:15:08.4]} 26. Nd7
{[%clk 0:15:49.2]} 26... Re8 {[%clk 0:15:07.5]} 27. Bb6 {[%clk 0:15:50.4]} 27...
Rb5 {[%clk 0:15:07.8]} 28. Bd4 {[%clk 0:15:52.9]} 28... Bxd4 {[%clk 0:15:06.1]}
29. Rxd4 {[%clk 0:15:55.1]} 29... a5 {[%clk 0:15:04.5]} 30. Nf6+ {[%clk
0:15:57.7]} 1-0

[Event "Live Chess"]
[Site "Chess.com"]
[Date "2023.09.16"]
[Round "-"]
[White "augustodemoraisrocha"]
[Black "sleepGM86"]
[Result "1-0"]
[WhiteElo "1468"]
[BlackElo "1114"]
[TimeControl "900+5"]
[EndTime "6:15:36 PDT"]
[Termination "augustodemoraisrocha venceu por desistência"]

1. e4 {[%clk 0:15:04.3]} 1... c5 {[%clk 0:15:02.7]} 2. Nf3 {[%clk 0:15:08.7]}
2... Nc6 {[%clk 0:15:06]} 3. d4 {[%clk 0:15:13.1]} 3... cxd4 {[%clk 0:15:09.3]}
4. Nxd4 {[%clk 0:15:18]} 4... g6 {[%clk 0:15:12.5]} 5. Nxc6 {[%clk 0:15:21.4]}
5... bxc6 {[%clk 0:15:15.5]} 6. Nc3 {[%clk 0:15:25.8]} 6... Bg7 {[%clk
0:15:17.6]} 7. Bc4 {[%clk 0:15:28.6]} 7... Nf6 {[%clk 0:15:21.3]} 8. b3 {[%clk
0:15:32.9]} 8... O-O {[%clk 0:15:25.1]} 9. Qd3 {[%clk 0:15:23.8]} 9... e6 {[%clk
0:15:25]} 10. Bb2 {[%clk 0:15:21.7]} 10... d5 {[%clk 0:15:27.8]} 11. exd5 {[%clk
0:15:24.6]} 11... cxd5 {[%clk 0:15:31.5]} 12. Ba6 {[%clk 0:15:26.8]} 12... Bxa6
{[%clk 0:15:32.9]} 13. Qxa6 {[%clk 0:15:31.7]} 13... Qb6 {[%clk 0:15:29]} 14.
Qxb6 {[%clk 0:15:34]} 14... axb6 {[%clk 0:15:33.1]} 15. a4 {[%clk 0:15:34.3]}
15... Ne4 {[%clk 0:15:31.5]} 16. Nxe4 {[%clk 0:15:23.1]} 16... Bxb2 {[%clk
0:15:34.2]} 17. Rb1 {[%clk 0:15:27.4]} 17... dxe4 {[%clk 0:15:31.2]} 18. Rxb2
{[%clk 0:15:30.3]} 18... Rfc8 {[%clk 0:15:35.7]} 19. O-O {[%clk 0:15:32.4]}
19... Ra7 {[%clk 0:15:39.3]} 20. h3 {[%clk 0:15:25.4]} 20... Kg7 {[%clk
0:15:43.2]} 21. Re1 {[%clk 0:15:27.5]} 21... f5 {[%clk 0:15:44.9]} 22. f3 {[%clk
0:15:18.4]} 22... exf3 {[%clk 0:15:40.9]} 23. Rxe6 {[%clk 0:15:16.4]} 23... fxg2
{[%clk 0:15:41.9]} 24. Rxb6 {[%clk 0:15:11.6]} 24... Rac7 {[%clk 0:15:44.2]} 25.
c4 {[%clk 0:15:02.8]} 25... f4 {[%clk 0:15:40.4]} 26. Kxg2 {[%clk 0:15:04.5]}
26... Rf7 {[%clk 0:15:40.2]} 27. Kf3 {[%clk 0:14:53.8]} 27... Re8 {[%clk
0:15:31]} 28. Re2 {[%clk 0:14:52.5]} 28... Rxe2 {[%clk 0:15:30.3]} 29. Kxe2
{[%clk 0:14:57.4]} 29... f3+ {[%clk 0:15:34.7]} 30. Kf2 {[%clk 0:15:00.9]} 30...
Kh6 {[%clk 0:15:36.5]} 31. Re6 {[%clk 0:15:02.6]} 31... Rb7 {[%clk 0:15:34.6]}
32. Re3 {[%clk 0:15:03.6]} 1-0